{"text_format":"1","workbook":"xlsx","n_sheets":2,"sheets":["Exercício","Correção"],"not_rendered":{"charts":0,"images":0,"macros":0,"external_links":0,"defined_names":0,"comments":0,"pivot_tables":0},"unopened":[],"bounds":{"document_bytes":16777216,"sheet_cells":100000,"rows_first":2000,"rows_last":500,"rows_between":2000,"halvings":0,"cell_chars":16384,"cell_head_chars":4096},"cells_cut":0,"cells_raw":0,"read":"whole","date_system":"1900"}

{"sheet":"Exercício","index":0,"n_rows":51,"n_cols":25,"rows_kept":51,"cut":false,"hidden":false,"merged":[[1,0,2,7],[29,4,29,5],[30,4,30,5],[31,4,31,5],[32,4,32,5],[33,4,33,5],[34,4,34,5],[35,4,35,5],[36,4,36,5],[37,4,37,5],[38,4,38,5],[39,4,39,5],[40,4,40,5],[41,4,41,5],[42,4,42,5],[48,4,48,5],[49,4,49,5],[50,4,50,5],[43,4,43,5],[44,4,44,5],[45,4,45,5],[46,4,46,5],[47,4,47,5]]}
[]
["Classificação das Tabuadas"]
[]
[]
["NOMES DOS ALUNOS","5x4","5x3","2x5","5x7","2x6","6x2","3x6","2x9","4x2","4x8","4x6","2x8","9x2","4x6","9x3","6x4","3x3","7x3","3x8","10x3","8x4","7x2"]
["CORES",null,null,null,null,null,null,null,null,null,null,null,null,null,null,null,null,null,null,null,null,null,null,"Avaliação","AVALIAÇÃO"]
["Afonso",null,"X","X","X","X","X","X","X","X","X",null,"X","X",null,null,null,null,null,null,"X",null,null,{"$f":"COUNTIF(B7:W7, \"X\")","v":12},{"$f":"IF(X7<=11,\"Insuficiente\",IF(X7<=12,\"Suficiente\",IF(X7<=15,\"Bom\",IF(X7<=22,\"Muito Bom\"))))","v":"Suficiente"}]
["Beatriz",null,null,null,null,"X","X","X","X","X","X",null,"X",null,"X","X",null,"X","X","X","X","X","X",{"$f":"COUNTIF(B8:W8, \"X\")","v":15},{"$f":"IF(X8<=11,\"Insuficiente\",IF(X8<=12,\"Suficiente\",IF(X8<=15,\"Bom\",IF(X8<=22,\"Muito Bom\"))))","v":"Bom"}]
["Francisca",null,null,null,null,null,null,null,null,null,null,null,null,null,null,null,null,null,null,null,null,null,null,0,"Insuficiente"]
["Luís",null,null,null,null,null,null,null,null,null,null,null,null,null,null,null,null,null,null,null,null,null,null,0,"Insuficiente"]
["Gonçalo",null,null,null,null,null,null,null,null,null,null,null,null,null,null,null,null,null,null,null,null,null,null,0,"Insuficiente"]
["Martim",null,null,null,null,null,null,null,null,null,null,null,null,null,null,null,null,"X",null,null,null,null,null,1,"Insuficiente"]
["Ema",null,null,null,null,null,null,null,null,null,null,null,null,null,null,null,null,null,null,null,null,null,null,0,"Insuficiente"]
["Sofia",null,null,null,null,null,null,null,null,null,null,null,null,null,null,null,null,null,null,null,null,null,null,0,"Insuficiente"]
["Leonor",null,null,null,null,null,null,null,null,null,null,null,null,null,null,null,null,null,null,null,null,null,null,0,"Insuficiente"]
["Lucas",null,null,null,null,null,null,null,null,null,null,null,null,null,null,null,null,null,null,null,null,null,null,0,"Insuficiente"]
["Diego",null,null,null,null,null,null,null,null,null,null,null,null,null,null,null,null,null,null,null,null,null,null,0,"Insuficiente"]
["Allan",null,null,null,null,null,null,null,null,null,null,null,null,null,null,null,null,null,null,null,null,null,null,0,"Insuficiente"]
[null,null,null,null,null,null,null,null,null,null,null,null,null,null,null,null,null,null,null,null,null,null,null,0,"Insuficiente"]
[null,null,null,null,null,null,null,null,null,null,null,null,null,null,null,null,null,null,null,null,null,null,null,0,"Insuficiente"]
[null,null,null,null,null,null,null,null,null,null,null,null,null,null,null,null,null,null,null,null,null,null,null,0,"Insuficiente"]
[null,"x","x","x","x","x","x","x","x","x","x",null,null,null,null,null,null,null,null,null,null,null,null,10,"Insuficiente"]
[null,null,null,null,null,null,null,null,null,null,null,null,null,null,null,null,null,null,null,null,null,null,null,0,"Insuficiente"]
[null,null,null,null,null,null,null,null,null,null,null,null,null,null,null,null,null,null,null,null,null,null,null,0,"Insuficiente"]
[null,null,null,null,null,null,null,null,null,null,null,null,null,null,null,null,null,null,null,null,null,null,null,0,"Insuficiente"]
[null,"x","x","x","x","x","x","x","x","x","x","x","x","x","x","x","x","x",null,null,null,null,null,17,"Muito Bom"]
[null,null,null,null,null,null,null,null,null,null,null,null,null,null,null,null,null,null,null,null,null,null,null,0,"Insuficiente"]
[]
[]
[null,"5X4","=",20,{"$f":"IF(D30=20,\"CERTO\")","v":"CERTO"}]
[null,"5x3","=",null,{"$f":"IF(D31=15,\"CERTO\")","v":false}]
[null,"2X5","=",10,{"$f":"IF(D32=10,\"CERTO\")","v":"CERTO"}]
[null,"5X7","=",35,{"$f":"IF(D33=35,\"CERTO\")","v":"CERTO"}]
[null,"2X6","=",12,{"$f":"IF(D34=12,\"CERTO\")","v":"CERTO"}]
[null,"6X2","=",12,{"$f":"IF(D35=12,\"CERTO\")","v":"CERTO"}]
[null,"3X6","=",null,{"$f":"IF(D36=18,\"CERTO\")","v":false}]
[null,"2X9","=",18,{"$f":"IF(D37=18,\"CERTO\")","v":"CERTO"}]
[null,"4X2","=",8,{"$f":"IF(D38=8,\"CERTO\")","v":"CERTO"}]
[null,"4X8","=",32,{"$f":"IF(D39=32,\"CERTO\")","v":"CERTO"}]
[null,"4X6","=",null,{"$f":"IF(D40=24,\"CERTO\")","v":false}]
[null,"2X8","=",16,{"$f":"IF(D41=16,\"CERTO\")","v":"CERTO"}]
[null,"9X2","=",18,{"$f":"IF(D42=18,\"CERTO\")","v":"CERTO"}]
[null,"4X6","=",24,{"$f":"IF(D43=24,\"CERTO\")","v":"CERTO"}]
[null,"9X3","=",27,{"$f":"IF(D44=27,\"CERTO\")","v":"CERTO"}]
[null,"6X4","=",null,{"$f":"IF(D45=24,\"CERTO\")","v":false}]
[null,"3X3","=",9,{"$f":"IF(D46=9,\"CERTO\")","v":"CERTO"}]
[null,"7X3","=",null,{"$f":"IF(D47=21,\"CERTO\")","v":false}]
[null,"3X8","=",24,{"$f":"IF(D48=24,\"CERTO\")","v":"CERTO"}]
[null,"10X3","=",30,{"$f":"IF(D49=30,\"CERTO\")","v":"CERTO"}]
[null,"8X4","=",null,{"$f":"IF(D50=32,\"CERTO\")","v":false}]
[null,"7X2","=",14,{"$f":"IF(D51=14,\"CERTO\")","v":"CERTO"}]

{"sheet":"Correção","index":1,"n_rows":8,"n_cols":23,"rows_kept":8,"cut":false,"hidden":false,"merged":[[1,1,2,7]]}
[]
[null,"CORREÇÃO DAS TABUADAS"]
[]
[]
[]
[null,"5x4","5x3","2x5","5x7","2x6","6x2","3x6","2x9","4x2","4x8","4x6","2x8","9x2","4x6","9x3","6x4","3x3","7x3","3x8","10x3","8x4","7x2"]
[]
[null,20,15,10,35,12,12,18,18,8,32,24,16,18,24,27,24,9,21,24,30,32,14]